bitfinex/quotes_SOLUSD_20250414
["timestamp","ask_amount","ask_price","bid_price","bid_amount"]
[1744642752137,7.5018,133.3,133.27,0.063]
[1744642752452,82.9,133.31,133.27,0.063]
[1744642752658,90.4014,133.31,133.27,25.24030195]
[1744642752954,90.4014,133.31,133.28,25.17730195]
[1744642753336,82.9,133.31,133.29,25.17730195]
[1744642754059,82.9,133.31,133.28,25.17730195]
[1744642754352,82.9,133.31,133.3,25.17730195]
[1744642754540,7.5004,133.33,133.3,25.17730195]
[1744642755157,7.5004,133.33,133.29,25.17730195]
[1744642755738,32.67770195,133.33,133.28,25.17730195]
[1744642755940,83.04216157,133.32,133.27,0.063]
[1744642756238,82.9,133.31,133.27,25.24030195]
[1744642756440,82.9,133.31,133.27,0.063]
[1744642756745,25.17730195,133.3,133.27,0.063]
[1744642757056,25.17730195,133.29,133.27,0.063]
[1744642757358,108.21946352,133.28,133.27,0.063]
[1744642757651,90.403,133.28,133.27,0.063]
[1744642761258,82.9,133.28,133.27,0.063]
[1744642761961,90.403,133.28,133.27,0.063]
[1744642762863,82.9,133.28,133.27,0.063]
[1744642763168,82.9,133.28,133.27,25.24030195]
[1744642763459,82.9,133.28,133.27,0.063]
[1744642763665,90.403,133.28,133.27,0.063]
[1744642764234,82.9,133.28,133.27,0.063]
[1744642764437,7.5021,133.3,133.27,25.24030195]
[1744642764637,7.5021,133.3,133.27,0.063]
[1744642764867,25.17730195,133.29,133.27,0.063]
[1744642765059,7.503,133.28,133.27,0.063]
[1744642765558,7.5027,133.29,133.27,0.063]
[1744642765754,82.9,133.31,133.28,25.17730195]
[1744642765948,82.9,133.31,133.29,25.17730195]
[1744642765949,90.4013,133.31,133.29,25.17730195]
[1744642766149,90.4013,133.31,133.28,25.17730195]
[1744642766335,25.31946352,133.3,133.27,0.063]
[1744642766665,82.9,133.29,133.27,0.063]
[1744642767155,7.503,133.28,133.27,0.063]
[1744642770065,7.64516157,133.28,133.27,0.063]
[1744642770442,90.4027,133.29,133.27,0.063]
[1744642770657,90.4027,133.29,133.27,25.24030195]
[1744642771142,82.9,133.29,133.28,25.17730195]
[1744642771962,82.9,133.29,133.27,0.063]
[1744642772141,82.9,133.29,133.28,25.17730195]
[1744642773944,90.4024,133.29,133.27,0.063]
[1744642774353,82.9,133.28,133.27,0.063]
[1744642775743,7.502,133.3,133.27,25.24030195]
[1744642775970,7.502,133.3,133.27,0.063]
[1744642776341,18.7506,133.33,133.28,25.31946352]
[1744642776546,82.9,133.34,133.32,25.17730195]
[1744642776755,90.398,133.37,133.33,25.17730195]
[1744642777064,90.398,133.37,133.34,25.17730195]
[1744642778246,115.57530195,133.37,133.32,25.17730195]
[1744642778681,134.32010195,133.37,133.32,25.17730195]
[1744642779051,90.398,133.37,133.33,25.17730195]
[1744642779253,90.398,133.37,133.34,25.17730195]
[1744642779968,90.398,133.37,133.3,0.14216157]
[1744642780174,82.9,133.36,133.32,25.17730195]
[1744642780356,82.9,133.36,133.34,25.17730195]
[1744642781876,90.3985,133.36,133.34,25.17730195]
[1744642782182,82.9,133.36,133.34,25.17730195]
[1744642783461,82.9,133.36,133.33,25.17730195]
[1744642783462,90.3987,133.36,133.33,25.17730195]
[1744642783757,90.3987,133.36,133.32,25.17730195]
[1744642783966,90.3987,133.36,133.31,7.501]
[1744642783967,115.57600195,133.36,133.31,25.17730195]
[1744642784154,82.9,133.35,133.3,25.17730195]
[1744642784483,108.07730195,133.35,133.3,25.17730195]
[1744642785063,25.17730195,133.34,133.29,25.17730195]
[1744642785386,108.07730195,133.35,133.3,25.17730195]
[1744642785562,108.07730195,133.35,133.31,25.17730195]
[1744642785878,82.9,133.35,133.32,25.17730195]
[1744642786186,26.0,133.33,133.27,0.063]
[1744642786384,26.0,133.31,133.27,0.063]
[1744642786681,25.17730195,133.31,133.27,0.063]
[1744642786873,31.46700195,133.34,133.29,25.17730195]
[1744642787178,25.17730195,133.32,133.28,25.17730195]
[1744642787492,7.5013,133.31,133.27,25.24030195]
[1744642788085,7.5013,133.31,133.28,25.17730195]
[1744642788577,7.5013,133.31,133.27,25.24030195]
[1744642789869,51.43180195,133.31,133.27,0.063]
[1744642790066,25.17730195,133.3,133.27,0.063]
[1744642790390,51.17730195,133.29,133.27,0.063]
[1744642790567,26.0,133.29,133.27,0.063]
[1744642791188,25.31946352,133.3,133.27,0.063]
[1744642791189,26.0,133.3,133.27,0.063]
[1744642791361,7.5001,133.33,133.29,25.17730195]
[1744642791766,51.42780195,133.33,133.29,25.17730195]
[1744642791968,51.42780195,133.33,133.28,25.17730195]
[1744642792164,51.42780195,133.33,133.27,25.24030195]
[1744642792165,25.31946352,133.32,133.27,25.24030195]
[1744642792685,25.31946352,133.32,133.27,0.063]
[1744642793268,25.17730195,133.31,133.27,0.063]
[1744642794093,7.5018,133.3,133.27,0.063]
[1744642795187,7.5018,133.3,133.27,25.24030195]
[1744642795789,7.5018,133.3,133.27,0.063]
[1744642796875,51.43370195,133.3,133.27,0.063]
[1744642797276,42.0128834,133.3,133.27,0.063]
[1744642797694,82.9,133.29,133.27,0.063]
[1744642798199,7.503,133.28,133.27,0.063]
[1744642799079,90.4027,133.29,133.27,0.063]
[1744642800565,82.9,133.29,133.28,15.7564834]
[1744642800770,7.501,133.32,133.28,15.7564834]
[1744642801265,7.501,133.32,133.27,0.063]
[1744642801266,15.7564834,133.31,133.27,0.063]
[1744642802186,23.2574834,133.32,133.27,15.8194834]
[1744642802394,7.501,133.32,133.27,0.20516157]
[1744642802588,7.501,133.32,133.29,15.7564834]
[1744642802976,7.501,133.32,133.28,15.7564834]
[1744642803894,23.2574834,133.32,133.27,23.8994834]
[1744642804397,15.7564834,133.31,133.27,0.063]
[1744642804586,34.40613226,133.28,133.27,0.063]
[1744642804894,82.9,133.3,133.27,0.063]
[1744642805094,15.7564834,133.28,133.27,0.063]
[1744642805300,34.54829383,133.28,133.27,0.063]
[1744642805470,42.05129383,133.28,133.27,0.063]
[1744642805671,42.05129383,133.28,133.22,0.063]
[1744642805672,0.14216157,133.26,133.22,0.063]
[1744642805891,82.9,133.25,133.22,0.063]
[1744642806097,98.6564834,133.25,133.22,0.063]
[1744642806271,15.7564834,133.23,133.22,0.063]
[1744642806472,82.9,133.24,133.22,0.063]
[1744642807477,90.4057,133.24,133.22,0.063]
[1744642808084,7.5041,133.26,133.23,15.7564834]
[1744642808386,82.9,133.32,133.26,0.28432314]
[1744642808590,82.9,133.32,133.27,15.7564834]
[1744642808591,0.14216157,133.31,133.27,15.7564834]
[1744642808886,98.6564834,133.3,133.25,15.7564834]
[1744642809081,98.6564834,133.3,133.26,15.7564834]
[1744642809293,82.9,133.3,133.27,15.7564834]
[1744642809513,82.9,133.3,133.29,15.7564834]
[1744642809815,82.9,133.34,133.3,7.5018]
[1744642809979,82.9,133.34,133.33,15.7564834]
[1744642810181,7.4987,133.36,133.33,15.7564834]
[1744642810430,7.4987,133.36,133.32,15.7564834]
[1744642810708,7.4987,133.36,133.33,15.7564834]
[1744642810891,7.4987,133.36,133.34,15.7564834]
[1744642811091,7.4987,133.36,133.33,15.7564834]
[1744642811397,7.4987,133.36,133.32,25.18358526]
[1744642811603,32.68228526,133.36,133.3,0.14216157]
[1744642811906,32.68228526,133.36,133.28,33.26358526]
[1744642811907,25.18358526,133.33,133.28,33.26358526]
[1744642812210,0.14216157,133.34,133.27,25.18358526]
[1744642812211,108.08358526,133.32,133.27,25.18358526]
[1744642812579,82.9,133.32,133.27,0.14216157]
[1744642812788,82.9,133.32,133.28,25.18358526]
[1744642813909,82.9,133.32,133.3,25.18358526]
[1744642814226,115.58268526,133.35,133.29,0.14216157]
[1744642814407,115.58268526,133.35,133.31,25.18358526]
[1744642814408,90.3991,133.35,133.31,25.18358526]
[1744642814612,90.3991,133.35,133.32,25.18358526]
[1744642814998,82.9,133.35,133.34,25.18358526]
[1744642815312,25.18358526,133.35,133.3,25.18358526]
[1744642815626,82.9,133.34,133.28,7.5028]
[1744642815829,108.08358526,133.34,133.3,25.18358526]
[1744642816126,115.58318526,133.34,133.3,25.18358526]
[1744642816330,90.3996,133.34,133.3,25.18358526]
[1744642816505,82.9,133.37,133.33,25.18358526]
[1744642816835,25.18358526,133.36,133.3,7.64396157]
[1744642817014,82.9,133.35,133.29,0.14216157]
[1744642817323,0.14216157,133.34,133.28,25.18358526]
[1744642817499,25.18358526,133.33,133.28,25.18358526]
[1744642817691,25.18358526,133.32,133.27,33.26358526]
[1744642818097,32.68488526,133.31,133.27,8.08]
[1744642818598,32.68488526,133.31,133.27,33.26358526]
[1744642819200,25.18358526,133.29,133.24,25.18358526]
[1744642819406,25.18358526,133.29,133.25,25.18358526]
[1744642819624,82.9,133.3,133.26,25.18358526]
[1744642820126,82.9,133.3,133.26,32.68728526]
[1744642820320,82.9,133.3,133.27,25.18358526]
[1744642821223,82.9,133.3,133.26,25.18358526]
[1744642821422,25.18358526,133.27,133.22,0.063]
[1744642821626,25.18358526,133.25,133.22,0.063]
[1744642822209,108.08358526,133.24,133.22,0.063]
[1744642823240,108.22574683,133.23,133.22,0.063]
[1744642823403,25.32574683,133.23,133.22,0.063]
[1744642824019,25.18358526,133.24,133.22,0.063]
[1744642824228,32.68928526,133.24,133.22,0.063]
[1744642824522,7.5057,133.24,133.22,0.063]
[1744642824734,32.68818526,133.25,133.22,0.063]
[1744642825510,7.5046,133.25,133.22,0.063]
[1744642825727,32.68818526,133.25,133.22,0.063]
[1744642826633,7.5046,133.25,133.22,0.063]
[1744642826813,25.18358526,133.28,133.23,25.18358526]
[1744642827020,25.18358526,133.27,133.22,25.24658526]
[1744642827349,25.18358526,133.25,133.22,0.063]
[1744642827631,25.18358526,133.24,133.22,0.063]
[1744642827842,32.68898526,133.24,133.22,0.063]
[1744642828023,7.5054,133.24,133.22,0.063]
[1744642828218,115.58898526,133.24,133.22,0.063]
[1744642828908,90.4054,133.24,133.22,0.063]
[1744642829109,115.58898526,133.24,133.22,0.063]
[1744642831138,25.32574683,133.23,133.22,0.063]
[1744642831639,44.25971883,133.23,133.22,0.063]
[1744642832234,44.25971883,133.23,133.16,0.063]
[1744642832235,27.45409514,133.22,133.16,0.063]
[1744642832435,44.25971883,133.17,133.16,0.063]
[1744642832736,26.0,133.19,133.16,0.063]
[1744642832974,32.69168526,133.19,133.16,0.063]
[1744642833628,25.18358526,133.17,133.16,0.063]
[1744642834430,25.32574683,133.18,133.16,0.063]
[1744642834634,25.18358526,133.19,133.16,0.063]
[1744642835150,25.18358526,133.22,133.17,25.18358526]
[1744642836017,18.79181043,133.24,133.18,25.18358526]
[1744642836240,25.18358526,133.24,133.19,25.18358526]
[1744642836939,25.18358526,133.22,133.17,7.5091]
[1744642837116,25.18358526,133.22,133.17,32.69268526]
[1744642837748,25.18358526,133.24,133.19,25.18358526]
[1744642837944,25.18358526,133.23,133.19,25.18358526]
[1744642838140,25.18358526,133.22,133.17,25.18358526]
[1744642838624,7.5054,133.24,133.18,0.14216157]
[1744642838823,25.18358526,133.24,133.2,25.18358526]
[1744642839023,25.18358526,133.24,133.19,25.18358526]
[1744642839331,25.18358526,133.23,133.19,25.18358526]
[1744642839538,25.18358526,133.22,133.18,25.18358526]
[1744642839736,25.18358526,133.21,133.17,7.5091]
[1744642839942,25.18358526,133.23,133.19,25.18358526]
[1744642840434,7.5056,133.24,133.19,32.69148526]
[1744642840637,25.18358526,133.23,133.19,32.69148526]
[1744642840947,82.9,133.25,133.21,25.18358526]
[1744642841144,90.4048,133.25,133.21,15.7658758]
[1744642841352,106.1706758,133.25,133.2,15.7658758]
[1744642841535,15.7658758,133.24,133.2,15.7658758]
[1744642841730,15.7658758,133.24,133.19,23.2737758]
[1744642841937,15.7658758,133.24,133.16,0.063]
[1744642841938,15.7658758,133.21,133.16,0.063]
[1744642842138,106.1734758,133.2,133.16,0.063]
[1744642842532,82.9,133.2,133.16,7.5727]
[1744642842843,82.9,133.2,133.17,15.7658758]
[1744642843039,82.9,133.2,133.16,23.3385758]
[1744642843440,15.7658758,133.19,133.16,0.063]
[1744642843638,82.9,133.2,133.16,0.063]
[1744642843639,15.90803737,133.17,133.16,0.063]
[1744642843843,34.98417094,133.17,133.16,0.063]
[1744642844047,23.2783758,133.11,133.1,0.063]
[1744642844739,42.35450937,133.11,133.1,0.063]
[1744642845151,51.88214531,133.11,133.1,0.063]
[1744642845360,52.02430688,133.11,133.1,0.063]
[1744642845529,18.933972,133.1,133.09,2.5593694]
[1744642845729,18.79181043,133.06,133.02,0.063]
[1744642845930,25.29351174,133.03,133.02,0.063]
[1744642846222,51.60242217,133.03,133.02,0.063]
[1744642846851,25.43567331,133.03,133.02,0.063]
[1744642847045,51.60242217,133.03,133.02,0.063]
[1744642847244,52.02890688,133.03,133.02,0.063]
[1744642848235,77.32241862,133.03,133.02,0.063]
[1744642848439,44.79181043,132.99,132.91,61.644]
[1744642848636,25.29351174,132.97,132.92,25.29351174]
[1744642848837,25.29351174,132.97,132.91,69.1678]
[1744642849135,25.29351174,132.98,132.93,25.29351174]
[1744642849337,0.14216157,132.99,132.96,25.29351174]
[1744642849531,0.14216157,132.97,132.91,69.1678]
[1744642849842,25.29351174,132.96,132.91,61.644]
[1744642850161,25.43567331,132.92,132.91,61.644]
[1744642850468,44.51180688,132.92,132.91,61.644]
[1744642850661,18.79181043,132.88,132.82,10.0877694]
[1744642850833,19.07613357,132.88,132.82,2.5593694]
[1744642851041,25.29351174,132.84,132.82,2.5593694]
[1744642851233,44.08532217,132.83,132.82,2.5593694]
[1744642851450,44.51180688,132.83,132.82,2.5593694]
[1744642852048,52.04020688,132.83,132.82,2.5593694]
[1744642853560,52.04020688,132.83,132.82,2.4172694]
[1744642853762,0.28432314,132.78,132.72,7.5342]
[1744642854061,25.29351174,132.74,132.68,0.063]
[1744642854262,43.9431606,132.72,132.68,0.063]
[1744642854663,43.9431606,132.72,132.68,7.5997]
[1744642854866,25.29351174,132.73,132.68,32.89321174]
[1744642855040,0.14216157,132.75,132.7,25.29351174]
[1744642855241,25.43567331,132.71,132.7,3.7688112]
[1744642855443,25.29351174,132.71,132.7,3.7688112]
[1744642855643,18.64964886,132.73,132.7,3.7688112]
[1744642855845,0.14216157,132.76,132.71,25.29351174]
[1744642856045,108.19351174,132.74,132.7,3.7688112]
[1744642856246,99.8738608,132.69,132.68,0.063]
[1744642856543,52.61180688,132.69,132.68,0.063]
[1744642857250,18.79181043,132.65,132.55,2.6191918]
[1744642857449,25.29351174,132.63,132.55,2.6191918]
[1744642857638,18.64964886,132.61,132.55,2.6191918]
[1744642857839,18.79181043,132.58,132.55,2.6191918]
[1744642858168,44.08532217,132.56,132.55,2.6191918]
[1744642858463,8.1,132.58,132.55,2.6191918]
[1744642858772,26.0,132.53,132.42,8.0801]
[1744642858935,25.71999645,132.54,132.46,25.29351174]
[1744642859137,38.69093543,132.51,132.46,38.69093543]
[1744642859363,0.14216157,132.53,132.48,38.69093543]
[1744642859558,0.28432314,132.53,132.47,38.69093543]
[1744642859864,19.07613357,132.51,132.43,26.4289]
[1744642860046,38.833097,132.48,132.39,7.5534]
[1744642860256,0.14216157,132.48,132.39,7.5534]
[1744642860559,15.6438,132.56,132.47,38.69093543]
[1744642860744,0.14216157,132.54,132.44,8.1]
[1744642860944,0.14216157,132.52,132.44,8.1]
[1744642861165,0.14216157,132.48,132.44,38.69093543]
[1744642861358,0.14216157,132.46,132.37,7.5545]
[1744642861548,0.14216157,132.46,132.41,38.69093543]
[1744642861862,82.9,132.53,132.45,38.69093543]
[1744642862054,38.833097,132.51,132.43,7.5511]
[1744642862363,0.14216157,132.49,132.43,38.69093543]
[1744642862672,38.69093543,132.49,132.44,38.69093543]
[1744642862976,38.69093543,132.49,132.35,18.79181043]
[1744642862977,0.14216157,132.44,132.33,8.1]
[1744642863165,38.69093543,132.41,132.31,7.558]
[1744642863365,38.69093543,132.4,132.35,38.69093543]
[1744642863571,0.14216157,132.43,132.31,7.558]
[1744642863741,38.69093543,132.39,132.31,7.558]
[1744642864067,0.14216157,132.41,132.31,26.453]
[1744642864364,0.14216157,132.43,132.36,38.69093543]
[1744642864665,90.4484,132.48,132.42,38.69093543]
[1744642864840,0.28432314,132.51,132.36,8.24216157]
[1744642865043,18.79181043,132.51,132.4,38.69093543]
[1744642865269,64.69093543,132.48,132.34,8.24216157]
[1744642865450,38.69093543,132.45,132.4,38.69093543]
[1744642865643,38.69093543,132.46,132.41,38.69093543]
[1744642865849,38.69093543,132.45,132.36,38.69093543]
[1744642866163,38.69093543,132.44,132.39,38.69093543]
[1744642866359,38.69093543,132.44,132.35,8.12]
[1744642866360,0.28432314,132.43,132.35,8.12]
[1744642866564,38.69093543,132.37,132.32,8.12]
[1744642866865,38.69093543,132.35,132.29,2.6191918]
[1744642867041,38.69093543,132.32,132.29,2.6191918]
[1744642867238,0.14216157,132.36,132.31,38.69093543]
[1744642867445,38.833097,132.32,132.29,2.6191918]
[1744642867667,39.11742014,132.3,132.29,2.6191918]
[1744642867875,104.720166,132.3,132.29,9.18e-05]
[1744642868043,104.720166,132.3,132.19,38.69093543]
[1744642868044,18.79181043,132.26,132.19,38.69093543]
[1744642868241,0.14216157,132.26,132.21,38.69093543]
[1744642868445,38.69093543,132.24,132.18,7.5653]
[1744642868660,38.69093543,132.25,132.2,38.69093543]
[1744642868865,38.69093543,132.25,132.18,7.5653]
[1744642869046,0.14216157,132.29,132.24,38.69093543]
[1744642869247,38.69093543,132.27,132.19,8.12]
[1744642869454,38.69093543,132.26,132.21,38.69093543]
[1744642869662,38.833097,132.25,132.19,8.12]
[1744642869870,38.833097,132.25,132.2,38.69093543]
[1744642870164,18.79181043,132.28,132.2,7.5642]
[1744642870363,0.14216157,132.32,132.26,38.69093543]
[1744642870575,7.5569,132.33,132.28,38.69093543]
[1744642870576,38.69093543,132.33,132.28,38.69093543]
[1744642870750,38.69093543,132.3,132.2,26.4749]
[1744642870953,38.69093543,132.29,132.24,38.75393543]
[1744642871151,38.69093543,132.27,132.24,0.063]
[1744642871354,96.600166,132.25,132.24,0.063]
[1744642871558,0.14216157,132.24,132.17,0.063]
[1744642871754,0.14216157,132.24,132.16,38.69093543]
[1744642872072,0.14216157,132.25,132.14,7.5673]
[1744642872279,38.69093543,132.24,132.14,18.9193]
[1744642872477,38.833097,132.24,132.13,7.5683]
[1744642872678,0.14216157,132.19,132.11,7.5694]
[1744642872857,0.14216157,132.17,132.08,7.5711]
[1744642873058,38.69093543,132.13,132.08,7.5711]
[1744642873471,38.69093543,132.1,132.05,7.5728]
[1744642873673,0.42648471,132.14,132.06,38.69093543]
[1744642873674,0.14216157,132.14,132.06,38.69093543]
[1744642873973,38.69093543,132.12,132.06,38.69093543]
[1744642874175,38.69093543,132.12,132.03,7.574]
[1744642874380,42.0076,132.15,132.07,38.69093543]
[1744642874551,26.0,132.19,132.08,8.44]
[1744642874755,7.5625,132.23,132.12,38.69093543]
[1744642875065,89.0986,132.32,132.21,38.69093543]
[1744642875374,38.69093543,132.22,132.08,8.44]
[1744642875555,38.69093543,132.16,132.11,38.69093543]
[1744642875874,8.44,132.23,132.13,38.69093543]
[1744642875875,0.42648471,132.21,132.13,38.69093543]
[1744642876098,8.44,132.23,132.16,38.69093543]
[1744642876388,8.44,132.23,132.13,7.5677]
[1744642876389,0.14216157,132.22,132.13,7.5677]
[1744642876562,16.0028,132.23,132.15,38.69093543]
[1744642876881,38.69093543,132.23,132.14,8.44]
[1744642877091,15.9997,132.28,132.2,38.69093543]
[1744642877273,38.69093543,132.27,132.22,38.69093543]
[1744642877579,7.5597,132.28,132.2,38.69093543]
[1744642877779,14.6386,132.32,132.23,38.69093543]
[1744642877780,38.69093543,132.29,132.23,38.69093543]
[1744642878000,7.70016157,132.31,132.23,38.69093543]
[1744642878279,38.69093543,132.28,132.22,38.69093543]
[1744642878454,38.69093543,132.3,132.25,38.69093543]
[1744642878653,38.69093543,132.3,132.2,26.4749]
[1744642878654,38.69093543,132.31,132.26,38.69093543]
[1744642878877,38.69093543,132.32,132.26,38.69093543]
[1744642879062,38.69093543,132.31,132.26,38.69093543]
[1744642879459,38.69093543,132.32,132.26,38.69093543]
[1744642879658,38.69093543,132.42,132.31,38.69093543]
[1744642879855,38.69093543,132.42,132.3,38.69093543]
[1744642879856,38.69093543,132.4,132.35,38.69093543]
[1744642880158,8.76,132.47,132.36,7.5551]
[1744642880361,38.69093543,132.44,132.39,38.69093543]
[1744642880576,38.69093543,132.45,132.39,38.69093543]
[1744642880780,8.76,132.47,132.36,7.5551]
[1744642881081,0.28432314,132.41,132.31,46.24893543]
[1744642881266,38.69093543,132.37,132.32,38.69093543]
[1744642881461,38.69093543,132.4,132.35,38.69093543]
[1744642881787,0.28432314,132.46,132.38,38.69093543]
[1744642882084,38.69093543,132.42,132.31,26.453]
[1744642882273,38.69093543,132.43,132.38,38.69093543]
[1744642882480,7.5496,132.46,132.41,38.69093543]
[1744642882685,54.99993543,132.47,132.41,38.69093543]
[1744642882863,16.309,132.47,132.42,38.69093543]
[1744642883199,16.309,132.47,132.4,38.69093543]
[1744642883489,38.69093543,132.49,132.44,38.69093543]
[1744642883690,38.69093543,132.49,132.43,38.69093543]
[1744642884071,7.68976157,132.5,132.44,38.69093543]
[1744642884273,18.8591,132.57,132.48,38.69093543]
[1744642884478,8.76,132.57,132.52,38.69093543]
[1744642884677,46.23353543,132.58,132.52,38.69093543]
[1744642884879,0.03,132.61,132.57,38.69093543]
[1744642885098,0.03,132.61,132.54,38.69093543]
[1744642885099,0.03,132.61,132.59,38.69093543]
[1744642885269,0.03,132.61,132.54,38.69093543]
[1744642885469,0.03,132.61,132.6,38.69093543]
[1744642885692,0.03,132.61,132.59,38.69093543]
[1744642885863,0.03,132.61,132.45,2.5368]
[1744642886191,38.69093543,132.51,132.46,38.69093543]
[1744642886489,38.69093543,132.54,132.48,38.69093543]
[1744642886689,9.08,132.55,132.5,38.69093543]
[1744642886985,9.08,132.55,132.49,38.69093543]
[1744642887192,9.08,132.55,132.45,9.0866]
[1744642887193,38.69093543,132.54,132.45,9.0866]
[1744642887397,38.69093543,132.54,132.49,38.69093543]
[1744642887604,38.69093543,132.52,132.43,8.76]
[1744642887890,38.69093543,132.52,132.46,38.69093543]
[1744642888068,38.69093543,132.52,132.43,8.76]
[1744642888268,38.69093543,132.51,132.46,38.69093543]
[1744642888983,0.14216157,132.52,132.46,38.69093543]
[1744642889302,7.5454,132.53,132.49,38.69093543]
[1744642889807,16.6249,132.54,132.49,38.69093543]
[1744642890090,16.6249,132.54,132.47,38.69093543]
[1744642890091,38.69093543,132.52,132.47,38.69093543]
[1744642890271,7.5471,132.5,132.45,38.69093543]
[1744642890593,66.63313543,132.54,132.48,38.69093543]
[1744642890891,16.625,132.54,132.49,38.69093543]
[1744642891095,7.545,132.54,132.49,38.69093543]
[1744642891297,7.545,132.54,132.5,38.69093543]
[1744642891597,46.23593543,132.54,132.49,38.69093543]
[1744642891795,46.23593543,132.54,132.43,16.311]
[1744642891979,38.69093543,132.54,132.49,38.69093543]
[1744642892180,38.69093543,132.54,132.48,38.69093543]
[1744642892781,0.14216157,132.55,132.48,38.69093543]
[1744642893005,38.69093543,132.54,132.49,38.69093543]
[1744642893292,38.69093543,132.55,132.49,38.69093543]
[1744642893500,46.23463543,132.56,132.51,38.69093543]
[1744642893673,7.5437,132.56,132.52,38.69093543]
[1744642894298,46.23463543,132.56,132.51,38.69093543]
[1744642894595,38.69093543,132.53,132.48,38.69093543]
[1744642894795,26.54516157,132.56,132.43,8.76]
[1744642895000,38.69093543,132.53,132.43,8.76]
[1744642895296,38.69093543,132.54,132.48,38.69093543]
[1744642895595,38.69093543,132.55,132.49,38.69093543]
[1744642895781,38.69093543,132.53,132.48,38.69093543]
[1744642896177,7.5448,132.54,132.49,38.69093543]
[1744642896473,46.23573543,132.54,132.48,38.69093543]
[1744642896885,38.69093543,132.53,132.48,38.69093543]
[1744642897491,46.23573543,132.54,132.48,38.69093543]
[1744642897797,7.5443,132.55,132.5,38.69093543]
[1744642898303,38.69093543,132.57,132.51,38.69093543]
[1744642898304,7.5439,132.56,132.51,38.69093543]
[1744642898479,38.69093543,132.55,132.49,38.69093543]
[1744642898881,38.69093543,132.55,132.46,26.0]
[1744642899081,26.4032,132.56,132.5,38.69093543]
[1744642899387,46.23483543,132.56,132.5,38.69093543]
[1744642899592,7.5439,132.56,132.5,38.69093543]
[1744642899791,46.23483543,132.56,132.51,38.69093543]
[1744642899976,38.69093543,132.58,132.53,38.69093543]
[1744642900176,38.69093543,132.58,132.48,38.69093543]
[1744642900488,19.07613357,132.56,132.44,7.5505]
[1744642900796,38.69093543,132.45,132.39,46.24433543]
[1744642901006,47.75093543,132.48,132.39,46.24433543]
[1744642901185,38.69093543,132.45,132.4,38.69093543]
[1744642901383,9.06,132.48,132.36,38.69093543]
[1744642901594,38.69093543,132.48,132.43,38.69093543]
[1744642901885,38.69093543,132.47,132.42,38.69093543]
[1744642902195,38.69093543,132.48,132.38,7.554]
[1744642902502,46.23963543,132.48,132.43,38.69093543]
[1744642903007,38.69093543,132.46,132.41,38.69093543]
[1744642903402,38.69093543,132.46,132.36,57.57873543]
[1744642903403,38.69093543,132.44,132.39,38.69093543]
[1744642903695,38.69093543,132.44,132.37,9.2037]
[1744642903900,38.69093543,132.44,132.39,38.69093543]
[1744642904107,26.4194,132.48,132.42,38.69093543]
[1744642904277,38.69093543,132.47,132.42,38.69093543]
[1744642904480,38.69093543,132.46,132.39,7.5529]
[1744642904694,38.69093543,132.45,132.37,1.6494]
[1744642904899,38.69093543,132.44,132.39,38.69093543]
[1744642905209,38.69093543,132.47,132.42,38.69093543]
[1744642905705,38.69093543,132.46,132.37,9.2038]
[1744642905907,38.69093543,132.44,132.37,1.6494]
[1744642906203,38.69093543,132.48,132.37,28.0902]
[1744642906383,7.5488,132.47,132.43,38.69093543]
[1744642907001,46.23973543,132.47,132.42,38.69093543]
[1744642907204,7.5488,132.47,132.43,38.69093543]
[1744642907406,46.23973543,132.47,132.42,38.69093543]
[1744642907615,46.23973543,132.47,132.37,28.0902]
[1744642907896,7.5488,132.47,132.37,28.0902]
[1744642908103,47.75093543,132.5,132.45,38.69093543]
[1744642908300,7.5478,132.49,132.44,38.69093543]
[1744642908479,38.69093543,132.48,132.43,38.69093543]
[1744642908680,46.23873543,132.49,132.44,38.69093543]
[1744642908876,7.5478,132.49,132.45,38.69093543]
[1744642909381,46.23873543,132.49,132.44,38.69093543]
[1744642910105,7.5478,132.49,132.44,38.69093543]
[1744642910279,7.5448,132.54,132.48,38.69093543]
[1744642910480,7.5426,132.58,132.53,38.69093543]